bitfinex-derivatives/quotes_ETHF0:USTF0_20250604
["timestamp","ask_amount","ask_price","bid_price","bid_amount"]
[1749016190436,0.76052,2628.0,2627.9,22.203]
[1749016190928,0.76052,2628.0,2627.9,4.609]
[1749016191236,0.76052,2628.0,2627.9,22.204]
[1749016192027,1.84645442,2628.0,2627.9,22.204]
[1749016194630,1.84645442,2628.0,2627.8,4.99617]
[1749016194935,1.10548892,2627.9,2627.8,4.99617]
[1749016195234,1.10548892,2627.9,2627.8,27.19417]
[1749016195932,1.86603892,2627.9,2627.8,26.4336]
[1749016196836,1.86603892,2627.9,2627.8,27.19418]
[1749016198835,1.86603892,2627.9,2627.8,26.4336]
[1749016199035,1.86532761,2627.9,2627.8,26.4336]
[1749016199439,1.86532761,2627.9,2627.8,8.8396]
[1749016199633,1.86532761,2627.9,2627.8,26.4326]
[1749016200137,1.86532761,2627.9,2627.8,27.19317]
[1749016200638,1.86532761,2627.9,2627.8,9.60017]
[1749016200837,1.86532761,2627.9,2627.8,27.19317]
[1749016201136,1.86532761,2627.9,2627.8,26.4326]
[1749016201537,1.86532761,2627.9,2627.8,27.19317]
[1749016201538,1.8650744,2627.9,2627.8,27.19317]
[1749016202134,1.1045244,2627.9,2627.8,27.19317]
[1749016202533,1.8650744,2627.9,2627.8,27.19317]
[1749016203340,1.8650744,2627.9,2627.8,26.4326]
[1749016203843,1.8650744,2627.9,2627.8,27.19317]
[1749016204346,1.8650744,2627.9,2627.8,26.4326]
[1749016204645,1.8650744,2627.9,2627.8,26.4336]
[1749016206144,1.8650744,2627.9,2627.8,27.19417]
[1749016209651,0.76047,2628.2,2627.8,26.4336]
[1749016209949,3.2078,2628.6,2627.9,2.08543]
[1749016209950,0.7605,2628.1,2627.9,2.08543]
[1749016211443,0.76042,2628.4,2628.2,0.76045]
[1749016211646,0.76042,2628.4,2628.3,0.6262]
[1749016211847,0.76039,2628.5,2628.3,2.61883]
[1749016212047,0.76039,2628.5,2628.4,1.2322]
[1749016213351,0.76032,2628.7,2628.5,0.76036]
[1749016214048,1.37689,2628.8,2628.6,0.76034]
[1749016214349,0.6166,2628.8,2628.7,17.589]
[1749016214545,0.6166,2628.8,2628.7,18.2503]
[1749016214748,1.37689,2628.8,2628.7,18.2503]
[1749016215450,0.6166,2628.8,2628.7,18.2503]
[1749016215853,1.37689,2628.8,2628.7,18.2503]
[1749016216152,1.37689,2628.8,2628.7,19.5323]
[1749016216355,0.6166,2628.8,2628.7,19.5323]
[1749016216654,1.37689,2628.8,2628.7,19.5323]
[1749016219252,0.6166,2628.8,2628.7,20.29261]
[1749016219450,0.6142,2628.9,2628.7,19.5323]
[1749016219650,1.37447,2628.9,2628.7,20.2926]
[1749016219859,1.37447,2628.9,2628.7,19.5323]
[1749016220060,1.37447,2628.9,2628.7,20.29261]
[1749016221459,0.76025,2629.0,2628.8,0.76028]
[1749016221656,1.09823089,2628.9,2628.8,1.98228]
[1749016225552,0.76023,2629.0,2628.9,0.76026]
[1749016226050,3.8166,2629.3,2628.8,1.222]
[1749016226258,1.09776181,2629.2,2629.1,0.7602]
[1749016226450,0.6477,2629.8,2629.3,0.76012]
[1749016226654,0.76011,2629.5,2629.3,0.76012]
[1749016226859,0.76011,2629.4,2629.3,0.76012]
[1749016227058,0.76014,2629.3,2629.2,0.76015]
[1749016228265,0.76011,2629.5,2629.3,0.76013]
[1749016228460,0.6029,2629.7,2629.3,0.76013]
[1749016228764,0.76013,2629.4,2629.2,0.76015]
[1749016228962,0.00533182,2629.6,2629.2,0.76015]
[1749016228963,0.76014,2629.3,2629.2,0.76015]
[1749016229162,0.76014,2629.4,2629.2,0.76017]
[1749016229358,0.76015,2629.3,2629.1,6.01029]
[1749016229564,0.76017,2629.2,2629.1,5.2501]
[1749016229760,0.76017,2629.2,2629.1,22.8291]
[1749016229956,0.76017,2629.2,2629.1,23.5893]
[1749016230266,0.76017,2629.2,2629.1,22.8291]
[1749016230469,0.00533182,2629.6,2629.1,22.8291]
[1749016230675,0.76014,2629.3,2629.2,0.76015]
[1749016231963,0.76013,2629.4,2629.2,0.76015]
[1749016233369,0.00533182,2629.6,2629.1,22.8291]
[1749016233570,0.76016,2629.3,2629.1,22.8291]
[1749016233867,0.76014,2629.3,2629.2,22.174]
[1749016234255,0.76014,2629.3,2629.2,22.93417]
[1749016235162,0.00533182,2629.6,2629.1,0.4313]
[1749016235468,0.00533182,2629.6,2629.3,0.76013]
[1749016235670,0.76014,2629.4,2629.2,22.93315]
[1749016235966,0.00533182,2629.6,2629.2,22.173]
[1749016236269,0.00533182,2629.6,2629.5,0.76008]
[1749016236670,0.00533182,2629.6,2629.5,1.36688]
[1749016237566,0.6539,2630.1,2629.5,5.6068]
[1749016237770,0.6539,2630.1,2629.5,1.97247]
[1749016237966,0.6539,2630.1,2629.6,23.3752]
[1749016238173,0.76001,2629.8,2629.7,0.76002]
[1749016238465,0.76001,2629.8,2629.6,24.13524]
[1749016238466,1.85290721,2629.8,2629.6,24.13524]
[1749016238666,0.76001,2629.8,2629.7,1.2032]
[1749016238877,1.85290034,2629.8,2629.7,1.2032]
[1749016239069,1.09289034,2629.8,2629.5,1.2124]
[1749016239268,1.85293034,2629.7,2629.6,22.17]
[1749016239575,0.76008,2629.5,2629.4,17.573]
[1749016239778,1.85297034,2629.5,2629.4,17.573]
[1749016239967,0.76017,2629.2,2629.1,1.0952]
[1749016240270,1.85306034,2629.2,2629.1,18.0033]
[1749016240677,1.85306034,2629.2,2629.1,17.572]
[1749016241079,1.85306034,2629.2,2629.1,18.3322]
[1749016241080,1.09289034,2629.2,2629.1,18.3322]
[1749016241266,1.09351652,2629.2,2629.1,19.5849]
[1749016241466,0.76013,2629.4,2629.2,0.76017]
[1749016241672,1.09373323,2629.3,2629.2,0.76017]
[1749016241874,1.85387323,2629.3,2629.2,1.2527]
[1749016242369,1.09373323,2629.3,2629.2,2.01287]
[1749016243168,1.85387323,2629.3,2629.2,17.572]
[1749016245075,1.09373323,2629.3,2629.2,17.572]
[1749016245270,0.76018,2629.2,2629.0,3.96801]
[1749016245477,1.09373323,2629.1,2629.0,3.96801]
[1749016245675,1.09373323,2629.1,2629.0,21.53901]
[1749016245875,1.09373323,2629.1,2629.0,22.77791]
[1749016246075,1.85393323,2629.1,2629.0,22.77791]
[1749016246273,1.09373323,2629.1,2629.0,22.77791]
[1749016246772,1.85393323,2629.1,2629.0,5.20691]
[1749016246978,1.85393323,2629.1,2629.0,27.37491]
[1749016247168,1.85393323,2629.1,2629.0,4.4467]
[1749016247372,1.85393323,2629.1,2629.0,26.6137]
[1749016247573,1.09373323,2629.1,2629.0,27.37393]
[1749016248173,1.8545055,2629.4,2629.2,0.76016]
[1749016248375,1.09438549,2629.3,2629.2,0.76016]
[1749016249175,0.76016,2629.3,2629.1,2.05578]
[1749016249376,1.09439822,2629.2,2629.1,2.05578]
[1749016250679,0.76013,2629.4,2629.2,0.76015]
[1749016250881,1.85494779,2629.4,2629.3,0.76014]
[1749016251078,1.09481779,2629.4,2629.2,1.2465]
[1749016251277,1.09481779,2629.3,2629.2,2.00667]
[1749016251668,0.76011,2629.4,2629.3,0.76014]
[1749016251867,1.09512189,2629.4,2629.3,3.96794]
[1749016252082,1.89956,2630.4,2629.3,46.5378]
[1749016252377,0.75997,2629.9,2629.8,3.2078]
[1749016253678,0.76008,2629.5,2629.4,1.2465]
[1749016253886,0.76008,2629.5,2629.4,17.568]
[1749016254682,0.76007,2629.6,2629.4,17.568]
[1749016254977,0.76007,2629.6,2629.4,0.76011]
[1749016255181,0.76007,2629.6,2629.5,17.568]
[1749016255484,0.76005,2629.6,2629.5,17.568]
[1749016255682,1.36894,2629.7,2629.5,17.568]
[1749016255877,1.36894,2629.7,2629.6,3.2078]
[1749016256377,0.6089,2629.7,2629.6,3.2078]
[1749016256694,0.6089,2629.7,2629.6,3.96785]
[1749016257178,0.6089,2629.7,2629.6,4.61575]
[1749016258779,0.6089,2629.7,2629.6,5.93555]
[1749016259678,0.6543,2629.8,2629.6,5.93555]
[1749016259874,1.41431,2629.8,2629.6,4.61575]
[1749016260074,0.76003,2629.7,2629.6,3.2078]
[1749016260278,1.41432,2629.8,2629.6,21.53385]
[1749016260579,0.76003,2629.7,2629.6,22.0013]
[1749016260784,1.41432,2629.8,2629.6,22.76135]
[1749016261284,0.76002,2629.7,2629.6,22.0013]
[1749016261786,0.76002,2629.7,2629.6,22.76135]
[1749016262382,1.41431,2629.8,2629.6,22.76135]
[1749016262582,0.76002,2629.7,2629.6,22.0013]
[1749016262974,0.76002,2629.7,2629.6,22.76135]
[1749016263772,1.4143,2629.8,2629.7,0.76002]
[1749016263979,0.6378,2630.1,2629.8,0.76]
[1749016264283,1.39771,2630.1,2630.0,3.2078]
[1749016264584,2.48834159,2630.1,2630.0,3.2078]
[1749016267888,2.50131542,2630.1,2630.0,3.2078]
[1749016269890,2.50150439,2630.1,2630.0,3.2078]
[1749016270983,1.86370439,2630.1,2630.0,3.2078]
[1749016271794,0.75991,2630.1,2630.0,4.4763]
[1749016271987,1.86360479,2630.1,2630.0,4.4763]
[1749016274287,1.86360479,2630.1,2630.0,3.2078]
[1749016274485,1.10369479,2630.1,2629.7,3.2078]
[1749016274688,0.75997,2629.9,2629.8,22.152]
[1749016274884,1.86366479,2629.9,2629.8,22.152]
[1749016275491,1.86366479,2629.9,2629.8,4.59]
[1749016275692,1.86366479,2629.9,2629.8,22.151]
[1749016275889,1.86311507,2629.9,2629.8,22.151]
[1749016277898,1.86311507,2629.9,2629.8,22.7525]
[1749016278590,1.86311507,2629.9,2629.7,3.2078]
[1749016278591,0.76,2629.8,2629.7,3.2078]
[1749016278790,1.86314507,2629.8,2629.7,20.7688]
[1749016279990,1.86324645,2629.8,2629.7,20.7688]
[1749016280192,1.86324645,2629.8,2629.7,3.2078]
[1749016280499,1.86324645,2629.8,2629.7,20.7688]
[1749016283301,0.76,2629.8,2629.7,20.7688]
[1749016283500,1.863956,2629.8,2629.7,20.7688]
[1749016284100,1.86388518,2629.8,2629.7,20.7688]
[1749016286404,1.86388518,2629.8,2629.7,20.7678]
[1749016286602,1.86388518,2629.8,2629.7,3.2078]
[1749016286902,1.86388518,2629.8,2629.7,20.7678]
[1749016288003,1.86311865,2629.8,2629.7,20.7678]
[1749016291508,1.86311865,2629.8,2629.7,20.7668]
[1749016292708,1.86311865,2629.8,2629.7,21.4134]
[1749016296207,1.86289874,2629.8,2629.7,21.4134]
[1749016297011,1.86289874,2629.8,2629.7,3.8544]
[1749016297211,1.86289874,2629.8,2629.7,21.4124]
[1749016298211,1.86289874,2629.8,2629.7,3.2078]
[1749016298408,1.86289874,2629.8,2629.7,20.7648]
[1749016300112,0.76,2629.8,2629.7,20.7648]
[1749016300309,0.76005,2629.6,2629.5,0.6252]
[1749016300620,0.76005,2629.6,2629.5,21.39]
[1749016300621,1.86364222,2629.6,2629.5,21.39]
[1749016300814,1.10359222,2629.6,2629.3,0.3807]
[1749016301018,0.76011,2629.4,2629.3,17.9367]
[1749016301217,1.86370222,2629.4,2629.3,0.3807]
[1749016304118,1.86362967,2629.4,2629.3,0.3807]
[1749016307012,3.10282967,2629.4,2629.3,0.3807]
[1749016307414,0.76017,2629.2,2629.1,0.3807]
[1749016307610,1.86368967,2629.2,2629.1,0.3807]
[1749016308010,1.10351967,2629.2,2628.9,3.21350765]
[1749016308217,0.76023,2629.0,2628.9,0.00570765]
[1749016308415,1.86374967,2629.0,2628.9,0.00570765]
[1749016308625,2.48694967,2629.0,2628.9,0.00570765]
[1749016312022,1.38343,2629.0,2628.9,0.00570765]
[1749016312324,2.48324189,2629.0,2628.9,0.00570765]
[1749016313120,1.86004189,2629.0,2628.9,0.00570765]
[1749016313322,1.86004189,2629.0,2628.9,3.21350765]
[1749016316128,1.85960033,2629.0,2628.9,3.21350765]
[1749016318826,1.09937033,2629.0,2628.9,3.21350765]
[1749016319226,1.85960033,2629.0,2628.9,4.50150765]
[1749016320028,1.85991606,2629.0,2628.9,26.64250765]
[1749016322725,1.86124972,2629.0,2628.9,26.64250765]
[1749016323328,1.10101972,2629.0,2628.9,27.40276765]
[1749016323628,1.86124972,2629.0,2628.9,26.64250765]
[1749016323826,1.86124972,2629.0,2628.9,27.40276765]
[1749016324023,1.10101972,2629.0,2628.9,27.40276765]
[1749016326632,0.76015,2629.3,2629.2,0.76017]
[1749016326836,1.86224123,2629.3,2629.2,3.2078]
[1749016327024,1.86224123,2629.3,2629.2,3.96797]
[1749016327733,1.86224123,2629.3,2629.2,5.27547]
[1749016328431,1.86224123,2629.3,2629.2,22.0693]
[1749016329328,1.86224123,2629.3,2629.2,22.82947]
[1749016330232,0.6594,2629.6,2629.2,22.82947]
[1749016330531,1.10294818,2629.5,2629.3,0.6501]
[1749016330730,1.10294818,2629.5,2629.3,1.9731]
[1749016330927,0.76011,2629.4,2629.3,1.9731]
[1749016331130,0.76011,2629.4,2629.3,0.6501]
[1749016332231,0.76011,2629.4,2629.3,18.2021]
[1749016332431,1.8631138,2629.4,2629.3,18.2021]
[1749016332835,0.76011,2629.4,2629.3,18.2021]
[1749016333137,1.86326312,2629.4,2629.3,18.2021]
[1749016337539,1.10315312,2629.4,2629.3,18.96224]
[1749016337739,1.10345499,2629.4,2629.3,18.96224]
[1749016341941,0.76009,2629.5,2629.3,18.96224]
[1749016342240,1.10365027,2629.4,2629.3,18.96223]
[1749016343445,1.86376027,2629.4,2629.3,18.96223]
[1749016344145,1.10365027,2629.4,2629.3,18.96223]
[1749016346045,0.76009,2629.5,2629.3,18.96223]
[1749016346234,1.10387012,2629.4,2629.3,18.96223]
[1749016347247,1.10387012,2629.4,2629.3,18.95723]
[1749016347450,1.10387012,2629.4,2629.3,1.41023]
[1749016347650,1.10387012,2629.4,2629.3,18.95723]
[1749016349141,1.86398012,2629.4,2629.3,18.1971]
[1749016349548,1.10387012,2629.4,2629.3,18.95724]
[1749016350154,1.10433511,2629.4,2629.3,18.95724]
[1749016351044,1.10433511,2629.4,2629.3,20.17674]
[1749016352649,1.86444511,2629.4,2629.3,20.17474]
[1749016352852,1.86444511,2629.4,2629.3,22.124]
[1749016354251,1.86490655,2629.4,2629.3,22.124]
[1749016355446,1.86490655,2629.4,2629.3,4.579]
[1749016355648,0.76014,2629.3,2629.2,8.97757]
[1749016355847,1.86493655,2629.3,2629.2,25.7614]
[1749016356854,1.86493655,2629.3,2629.2,26.52157]
[1749016357055,1.10479655,2629.3,2629.2,26.52157]
[1749016357254,1.86493655,2629.3,2629.2,26.52157]
[1749016358260,1.86562086,2629.3,2629.2,26.52157]
[1749016360163,1.86562086,2629.3,2629.2,26.51957]
[1749016361764,1.86562086,2629.3,2629.2,8.97757]
[1749016361960,1.86562086,2629.3,2629.2,26.51957]
[1749016362360,1.86544777,2629.3,2629.2,26.51957]
[1749016362562,1.86544777,2629.3,2629.2,25.7594]
[1749016362754,1.86544777,2629.3,2629.2,3.6384]
[1749016363064,1.86544777,2629.3,2629.2,21.1804]
[1749016363358,1.86544777,2629.3,2629.2,3.2078]
[1749016363558,1.86544777,2629.3,2629.2,20.7488]
[1749016366456,1.86612099,2629.3,2629.2,20.7488]
[1749016366657,1.86612099,2629.3,2629.2,21.50897]
[1749016367163,1.10598099,2629.3,2629.2,22.80897]
[1749016367364,1.86612099,2629.3,2629.2,22.80897]
[1749016368364,1.86612099,2629.3,2629.2,22.80797]
[1749016369670,1.86612099,2629.3,2629.2,22.0478]
[1749016370368,1.86612099,2629.3,2629.2,4.5078]
[1749016370566,1.86690887,2629.3,2629.2,3.2078]
[1749016370768,1.86690887,2629.3,2629.2,20.7468]
[1749016372867,1.86690887,2629.3,2629.2,3.2078]
[1749016373070,1.86690887,2629.3,2628.9,0.43620765]
[1749016373071,0.76023,2629.0,2628.9,8.22300765]
[1749016373367,1.86699887,2629.0,2628.9,25.33050765]
[1749016373564,1.86699887,2629.0,2628.9,7.79250765]
[1749016373867,1.86699887,2629.0,2628.9,25.33050765]
[1749016374367,1.86699887,2629.0,2628.9,25.32950765]
[1749016374566,1.86742286,2629.0,2628.9,3.21350765]
[1749016374766,1.86742286,2629.0,2628.9,20.75050765]
[1749016375568,1.86742286,2629.0,2628.9,3.21350765]
[1749016375865,1.86742286,2629.0,2628.9,20.75050765]
[1749016378468,0.76023,2629.0,2628.9,20.75050765]
[1749016378671,1.86679225,2629.0,2628.9,20.75050765]
[1749016380266,1.86679225,2629.0,2628.9,21.13090765]
[1749016380463,1.86679225,2629.0,2628.9,23.03300765]
[1749016381163,0.76023,2629.0,2628.9,23.03300765]
[1749016381367,1.86657556,2629.0,2628.9,23.03300765]
[1749016382068,1.86657556,2629.0,2628.9,23.03200765]
[1749016382565,1.86657556,2629.0,2628.9,21.76730765]
[1749016385265,1.86635404,2629.0,2628.9,21.76730765]
[1749016387372,1.86635404,2629.0,2628.9,21.76630765]
[1749016389365,1.86589712,2629.0,2628.9,21.76630765]
[1749016392476,1.86602342,2629.0,2628.9,21.76630765]
[1749016393274,1.86601713,2629.0,2628.9,21.12690765]
[1749016393478,1.8660097,2629.0,2628.9,21.12690765]
[1749016393774,6.8660097,2629.0,2628.9,0.00570765]
[1749016393974,0.76031,2628.7,2628.6,17.9124]
[1749016394175,1.8660897,2628.7,2628.6,21.1202]
[1749016397373,1.86571821,2628.7,2628.6,21.1202]
[1749016397876,1.86571043,2628.7,2628.6,21.1202]
[1749016399167,1.86531151,2628.7,2628.6,21.1202]
[1749016399576,1.10500151,2628.7,2628.6,21.88054]
[1749016401482,1.10500512,2628.7,2628.6,21.88054]
[1749016401684,1.86531512,2628.7,2628.6,3.5882]
[1749016401881,1.86531512,2628.7,2628.6,21.1192]
[1749016402085,1.86531512,2628.7,2628.6,22.406]
[1749016405494,1.86562229,2628.7,2628.6,22.406]
[1749016406883,1.8661214,2628.7,2628.6,22.406]
[1749016409487,1.86615687,2628.7,2628.6,22.406]
[1749016410991,1.86615687,2628.7,2628.6,22.402]
[1749016417406,1.86615687,2628.7,2628.6,22.4]
[1749016417799,1.8664404,2628.7,2628.6,22.4]
[1749016418495,1.86650714,2628.7,2628.6,22.4]
[1749016418899,1.86650714,2628.7,2628.6,4.875]
[1749016419301,1.86650714,2628.7,2628.6,22.399]
[1749016420803,1.86650714,2628.7,2628.6,21.1122]
[1749016421003,2.52140714,2628.7,2628.6,21.1122]
[1749016421205,2.52140714,2628.7,2628.6,21.1112]
[1749016421806,2.5217439,2628.7,2628.6,21.1112]
[1749016425715,1.41521,2628.7,2628.6,21.1112]
[1749016425915,2.52214061,2628.7,2628.6,21.1112]
[1749016426718,2.52214061,2628.7,2628.6,21.1092]
[1749016429116,2.52214061,2628.7,2628.6,3.5882]
[1749016429821,2.52241537,2628.7,2628.6,3.5882]
[1749016432610,2.52241537,2628.7,2628.6,3.2078]
[1749016433421,0.76037,2628.5,2628.4,0.00570765]
[1749016433719,1.86757537,2628.5,2628.4,0.00570765]
[1749016433918,1.86718958,2628.5,2628.4,0.00570765]
[1749016435921,2.52798958,2628.5,2628.4,0.00570765]
[1749016437927,2.52418971,2628.5,2628.4,0.00570765]
[1749016439923,3.75998971,2628.5,2628.4,0.00570765]
[1749016440915,2.65697,2628.5,2628.4,0.00570765]
[1749016441120,3.75950466,2628.5,2628.4,0.00570765]
[1749016441929,2.52370466,2628.5,2628.4,0.00570765]
[1749016446722,2.52370466,2628.5,2628.4,7.65e-06]
[1749016446927,7.52370466,2628.5,2628.4,7.65e-06]
[1749016447228,8.80890466,2628.5,2628.4,7.65e-06]
[1749016448427,8.80855444,2628.5,2628.4,7.65e-06]
[1749016449920,8.04818444,2628.5,2627.3,0.3804]
[1749016450218,0.76072,2627.3,2627.2,3.2078]
[1749016450417,0.76072,2627.3,2627.2,21.9741]
[1749016450622,1.86290444,2627.3,2627.2,21.9741]
[1749016451133,1.10218444,2627.3,2627.2,21.9741]
[1749016452122,1.10218444,2627.3,2627.2,4.4581]
[1749016452527,1.10058218,2627.3,2627.2,4.4581]
[1749016452724,1.10059576,2627.3,2627.2,4.4581]
[1749016453128,1.10059576,2627.3,2627.2,5.21885]
[1749016454123,1.86131576,2627.3,2627.2,5.21885]
[1749016454331,1.10059576,2627.3,2627.2,5.21885]
[1749016454526,1.86131576,2627.3,2627.2,5.21885]
[1749016455824,1.86131576,2627.3,2627.2,2.01105]
[1749016456024,1.86131576,2627.3,2627.2,5.21885]
[1749016456235,1.10059576,2627.3,2627.2,5.21885]
[1749016456531,1.86097492,2627.3,2627.2,4.4581]
[1749016457332,1.10025492,2627.3,2627.2,5.21885]
[1749016458824,1.10025492,2627.3,2627.2,10.21885]
[1749016459044,1.30740765,2627.5,2627.4,0.76069]
[1749016459230,1.30740765,2627.5,2627.4,5.32269]
[1749016459426,1.30740765,2627.5,2627.4,10.32269]
[1749016459626,1.30740765,2627.5,2627.4,10.97589]
[1749016461228,2.06806765,2627.5,2627.4,0.6532]
[1749016463631,2.06806765,2627.5,2627.4,18.1672]
[1749016464630,2.06806765,2627.5,2627.4,19.4736]
[1749016465937,1.30740765,2627.5,2627.4,20.23429]
[1749016466628,1.30740765,2627.5,2627.4,25.23429]
[1749016466835,0.76056,2627.9,2627.8,0.76058]
[1749016467035,0.76056,2627.9,2627.8,3.96838]
[1749016467337,0.76056,2627.9,2627.8,3.2078]
[1749016467532,0.76056,2627.9,2627.8,4.5271]
[1749016470032,0.76056,2627.9,2627.8,22.0391]
[1749016470228,0.76056,2627.9,2627.8,20.7198]
[1749016470941,1.85770577,2627.9,2627.8,20.7198]
[1749016471135,0.76063,2627.7,2627.6,4.555]
[1749016471342,1.85777577,2627.7,2627.6,23.3873]
[1749016472138,1.85777577,2627.7,2627.6,1.3203]
[1749016472340,0.76063,2627.6,2627.5,3.8238]
[1749016472538,1.85777577,2627.6,2627.5,3.8238]
[1749016472734,2.51831671,2627.6,2627.5,3.8238]
[1749016476738,2.51864592,2627.6,2627.5,3.8238]
[1749016480536,2.51817105,2627.6,2627.5,3.8238]
[1749016482438,2.51817105,2627.6,2627.5,0.616]
[1749016484543,1.41993,2627.6,2627.5,0.616]
[1749016484743,2.51782637,2627.6,2627.5,0.616]
[1749016485544,2.51782637,2627.6,2627.5,18.124]
[1749016487547,1.09789637,2627.6,2627.5,18.88466]
[1749016487747,1.09789637,2627.6,2627.5,20.09716]
[1749016488638,0.6554,2628.0,2627.5,20.09716]
[1749016488842,0.76058,2627.8,2627.7,3.2078]
[1749016489053,1.85866884,2627.8,2627.7,3.2078]
[1749016489939,1.09808884,2627.8,2627.7,3.9684]
[1749016490249,1.09808884,2627.8,2627.7,5.1809]
[1749016492148,1.88110765,2628.1,2627.9,0.76055]
[1749016492449,1.0983299,2628.0,2627.9,0.76055]
[1749016492652,1.0981565,2628.0,2627.9,3.96835]
[1749016492952,1.8586765,2628.0,2627.9,3.96835]
[1749016493155,1.0981565,2628.0,2627.9,3.96835]
[1749016493349,1.8586765,2628.0,2627.9,3.96835]
[1749016493551,1.0981565,2628.0,2627.9,3.96835]
[1749016494053,1.8586765,2628.0,2627.9,3.2078]
[1749016494252,1.8586765,2628.0,2627.9,20.7118]
[1749016494755,1.0981565,2628.0,2627.9,20.7118]
[1749016494959,1.8586765,2628.0,2627.9,20.7118]
[1749016495254,1.8586765,2628.0,2627.9,21.47235]
[1749016495455,1.0981565,2628.0,2627.9,21.47235]
[1749016495656,1.8586765,2628.0,2627.9,20.7118]
[1749016495957,1.0981565,2628.0,2627.6,7.7628]
[1749016496260,2.4674065,2627.9,2627.8,17.504]
[1749016496755,2.46686518,2627.9,2627.8,17.504]
[1749016500560,2.46707068,2627.9,2627.8,17.504]
[1749016503461,2.46703592,2627.9,2627.8,17.504]
[1749016505879,0.76058,2627.8,2627.7,18.1214]
[1749016506080,1.85836592,2627.8,2627.7,18.1214]
[1749016507483,1.8583984,2627.8,2627.7,18.1214]
[1749016509681,2.3386984,2627.8,2627.7,18.1214]
[1749016509880,2.3386984,2627.8,2627.7,0.6214]
[1749016510186,2.3386984,2627.8,2627.6,25.2618]
[1749016510187,0.7606,2627.7,2627.6,3.2078]
[1749016510389,2.4892184,2627.7,2627.6,3.2078]
[1749016511389,2.48945742,2627.7,2627.6,3.2078]
[1749016511783,0.76069,2627.4,2627.3,3.2078]
[1749016512089,1.85874742,2627.4,2627.3,3.2078]
[1749016512886,1.85879405,2627.4,2627.3,3.2078]
[1749016515382,0.76069,2627.4,2627.3,3.2078]
[1749016515587,1.85856606,2627.4,2627.3,3.2078]
[1749016516289,0.76075,2627.2,2627.1,0.3804]
[1749016516498,1.85862606,2627.2,2627.1,0.3804]
[1749016516992,0.76078,2627.1,2627.0,0.38610765]
[1749016517194,1.85865606,2627.1,2627.0,0.38610765]
[1749016517588,1.09787606,2627.1,2627.0,2.42831765]
[1749016518389,1.09787606,2627.1,2627.0,1.28710765]
[1749016518599,1.85865606,2627.1,2627.0,23.33510765]
[1749016519301,1.09787606,2627.1,2627.0,24.09591765]
[1749016519487,1.09787606,2627.1,2627.0,23.33510765]
[1749016520099,1.85865606,2627.1,2627.0,23.33510765]
[1749016523199,1.09787606,2627.1,2627.0,24.09591765]
[1749016523404,1.85865606,2627.1,2627.0,24.09591765]
[1749016523898,1.09787606,2627.1,2627.0,24.09591765]
[1749016524095,1.85865606,2627.1,2627.0,24.09591765]
[1749016525496,1.09787606,2627.1,2627.0,24.09591765]
[1749016527502,0.76067,2627.5,2627.4,0.76069]
[1749016527705,1.85808589,2627.5,2627.4,3.96849]
[1749016528204,1.09741589,2627.5,2627.4,3.96849]
[1749016529896,1.85807589,2627.5,2627.4,3.96849]
[1749016531303,0.76066,2627.5,2627.4,3.96849]
[1749016531597,0.76066,2627.5,2627.4,20.7018]
[1749016531996,1.85881274,2627.5,2627.4,20.7018]
[1749016532806,1.85881274,2627.5,2627.4,21.46249]
[1749016533510,1.85881274,2627.5,2627.4,26.00649]
[1749016535201,1.09815274,2627.5,2627.4,26.00649]
[1749016535408,1.09829364,2627.5,2627.4,26.00649]
[1749016539302,1.85895364,2627.5,2627.4,8.51249]
[1749016539510,1.85933631,2627.5,2627.4,26.00249]
[1749016540407,1.09867631,2627.5,2627.4,26.00249]
[1749016542206,1.09867631,2627.5,2627.4,8.51249]
[1749016542507,1.85933631,2627.5,2627.4,26.00149]
[1749016542709,1.09867631,2627.5,2627.4,26.00149]
[1749016543515,0.76065,2627.6,2627.5,0.76066]
[1749016543710,1.85946778,2627.6,2627.5,2.65336]
[1749016545318,1.85946778,2627.6,2627.5,1.8927]
[1749016548715,1.8598851,2627.6,2627.5,1.8927]
[1749016549414,1.8598851,2627.6,2627.5,2.65336]
[1749016549617,1.8598851,2627.6,2627.5,1.8927]
[1749016550305,1.8598851,2627.6,2627.5,2.65336]
[1749016550508,1.8598651,2627.6,2627.5,2.65336]
[1749016551212,1.0992351,2627.6,2627.5,2.65336]
[1749016551610,0.76062,2627.7,2627.6,0.76063]
[1749016551820,0.76063,2627.6,2627.5,2.65335]
[1749016552015,1.86065495,2627.6,2627.5,2.65335]
[1749016552321,1.10002495,2627.6,2627.5,2.65335]
[1749016553422,1.86065495,2627.6,2627.5,2.65335]
[1749016553619,1.86065495,2627.6,2627.5,5.86115]
[1749016554121,1.10002495,2627.6,2627.5,5.86115]
[1749016554822,1.10002495,2627.6,2627.5,23.34515]
[1749016555424,1.86065495,2627.6,2627.5,23.34515]
[1749016555619,0.76061,2627.7,2627.6,0.76063]
[1749016555820,0.76063,2627.6,2627.5,23.34514]
[1749016556021,1.10158317,2627.6,2627.5,23.34514]
[1749016557919,1.86221317,2627.6,2627.5,23.34514]
[1749016559421,1.10158317,2627.6,2627.5,23.34514]
[1749016559827,1.86234868,2627.6,2627.5,23.34514]
[1749016561133,1.10171868,2627.6,2627.5,23.34514]
[1749016561931,1.86234868,2627.6,2627.5,23.34514]
[1749016562133,1.10171868,2627.6,2627.5,23.34514]
[1749016562331,0.76062,2627.7,2627.6,0.76063]
[1749016562630,1.861852,2627.7,2627.6,0.76063]
[1749016563333,0.76063,2627.6,2627.5,23.34515]
[1749016563627,1.861862,2627.6,2627.5,23.34515]
[1749016564033,1.101232,2627.6,2627.5,23.34515]
[1749016567537,1.861862,2627.6,2627.5,23.34515]
[1749016567830,1.861862,2627.6,2627.5,25.2228]
[1749016568331,1.861862,2627.6,2627.5,3.2078]
[1749016568534,1.861862,2627.6,2627.5,20.6858]
[1749016570038,1.861862,2627.6,2627.5,3.2078]
[1749016570239,0.76063,2627.6,2627.5,20.6858]
[1749016570440,1.86266927,2627.6,2627.5,20.6858]
[1749016570742,1.86266927,2627.6,2627.5,20.6848]